Workbook

Sheet sh1マスター
A1: 種類 | B1: 区分 | D1: 増加事由 | E1: 番号 | G1: 耐用年数 | H1: 減価率 r | I1: 減価残存率前年中取得 A | J1: 減価残存率前年前取得 B
A2: 構築物 | B2: 1 | D2: 新品取得 | E2: 1 | G2: 2 | H2: 0.684 | I2: 0.658 | J2: 0.316
A3: 機械及び装置 | B3: 2 | D3: 中古品取得 | E3: 2 | G3: 3 | H3: 0.536 | I3: 0.732 | J3: 0.464
A4: 船舶 | B4: 3 | D4: 移動による受入れ | E4: 3 | G4: 4 | H4: 0.438 | I4: 0.781 | J4: 0.562
A5: 航空機 | B5: 4 | D5: その他 | E5: 4 | G5: 5 | H5: 0.369 | I5: 0.815 | J5: 0.631
A6: 車両及び運搬具 | B6: 5 | G6: 6 | H6: 0.319 | I6: 0.84 | J6: 0.681
A7: 工具、器具及び備品 | B7: 6 | G7: 7 | H7: 0.28 | I7: 0.86 | J7: 0.72
G8: 8 | H8: 0.25 | I8: 0.875 | J8: 0.75
G9: 9 | H9: 0.226 | I9: 0.887 | J9: 0.774
G10: 10 | H10: 0.206 | I10: 0.897 | J10: 0.794
G11: 11 | H11: 0.189 | I11: 0.905 | J11: 0.811
G12: 12 | H12: 0.175 | I12: 0.912 | J12: 0.825
G13: 13 | H13: 0.162 | I13: 0.919 | J13: 0.838
G14: 14 | H14: 0.152 | I14: 0.924 | J14: 0.848
G15: 15 | H15: 0.142 | I15: 0.929 | J15: 0.858
G16: 16 | H16: 0.134 | I16: 0.933 | J16: 0.866
G17: 17 | H17: 0.127 | I17: 0.936 | J17: 0.873
G18: 18 | H18: 0.12 | I18: 0.94 | J18: 0.88
G19: 19 | H19: 0.114 | I19: 0.943 | J19: 0.886
G20: 20 | H20: 0.109 | I20: 0.945 | J20: 0.891
G21: 21 | H21: 0.104 | I21: 0.948 | J21: 0.896
G22: 22 | H22: 0.099 | I22: 0.95 | J22: 0.901
G23: 23 | H23: 0.095 | I23: 0.952 | J23: 0.905
G24: 24 | H24: 0.092 | I24: 0.954 | J24: 0.908
G25: 25 | H25: 0.088 | I25: 0.956 | J25: 0.912
G26: 26 | H26: 0.085 | I26: 0.957 | J26: 0.915
G27: 27 | H27: 0.082 | I27: 0.959 | J27: 0.918
G28: 28 | H28: 0.079 | I28: 0.96 | J28: 0.921
G29: 29 | H29: 0.076 | I29: 0.962 | J29: 0.924
G30: 30 | H30: 0.074 | I30: 0.963 | J30: 0.926
G31: 31 | H31: 0.072 | I31: 0.964 | J31: 0.928
G32: 32 | H32: 0.069 | I32: 0.965 | J32: 0.931
G33: 33 | H33: 0.067 | I33: 0.966 | J33: 0.933
G34: 34 | H34: 0.066 | I34: 0.967 | J34: 0.934
G35: 35 | H35: 0.064 | I35: 0.968 | J35: 0.936
G36: 36 | H36: 0.062 | I36: 0.969 | J36: 0.938
G37: 37 | H37: 0.06 | I37: 0.97 | J37: 0.94
G38: 38 | H38: 0.059 | I38: 0.97 | J38: 0.941
G39: 39 | H39: 0.057 | I39: 0.971 | J39: 0.943
G40: 40 | H40: 0.056 | I40: 0.972 | J40: 0.944
G41: 41 | H41: 0.055 | I41: 0.972 | J41: 0.945
G42: 42 | H42: 0.053 | I42: 0.973 | J42: 0.947
G43: 43 | H43: 0.052 | I43: 0.974 | J43: 0.948
G44: 44 | H44: 0.051 | I44: 0.974 | J44: 0.949
G45: 45 | H45: 0.05 | I45: 0.975 | J45: 0.95
G46: 46 | H46: 0.049 | I46: 0.975 | J46: 0.951
G47: 47 | H47: 0.048 | I47: 0.976 | J47: 0.952
G48: 48 | H48: 0.047 | I48: 0.976 | J48: 0.953
G49: 49 | H49: 0.046 | I49: 0.977 | J49: 0.954
G50: 50 | H50: 0.045 | I50: 0.977 | J50: 0.955
G51: 51 | H51: 0.044 | I51: 0.978 | J51: 0.956
G52: 52 | H52: 0.043 | I52: 0.978 | J52: 0.957

Sheet sh2増加
E1: 種類別明細書（増加資産・全資産用） | F1: 申告 | G1: 2017 | H1: 年 | N1: 税率
N2: 0.014
A4: 行番号 | B4: 資産の種類(ﾄｼﾞ) | C4: 資産の種類 | D4: 資産コード（任意） | E4: 資産の名称等 | F4: 数量 | G4: 取得年月日 | H4: 取得価額 | I4: 耐用年数 | J4: 残存価額 | K4: 減価残存率 | L4: 価額 | M4: 課税標準 | N4: 税額 | O4: 増加事由(ﾄｼﾞ) | P4: 増加事由 | Q4: 摘要 | R4: =sh3試算!BJ4 -> 2018 | S4: =sh3試算!BK4 -> 2019
A5: 1 | B5: 工具、器具及び備品 | C5: =IF(ISERROR(VLOOKUP($B5,sh1マスター!$A$1:$B$7,2,0)),"",VLOOKUP($B5,sh1マスター!$A$1:$B$7,2,0)) -> 6 | E5: 工具、器具及び備品 | F5: 1 | G5: 20150801 | H5: 1600000 | I5: 4 | N5: =sh3試算!BI5 -> 9800 | P5: =IF(ISERROR(VLOOKUP($O5,sh1マスター!$D$2:$E$5,2,0)),"",VLOOKUP($O5,sh1マスター!$D$2:$E$5,2,0)) ->  | R5: =sh3試算!BJ5 -> 5500 | S5: =sh3試算!BK5 -> 3000
A6: 2 | B6: 機械及び装置 | C6: =IF(ISERROR(VLOOKUP($B6,sh1マスター!$A$1:$B$7,2,0)),"",VLOOKUP($B6,sh1マスター!$A$1:$B$7,2,0)) -> 2 | E6: 機械装置A | F6: 1 | G6: 20160111 | H6: 1600000 | I6: 9 | N6: =sh3試算!BI6 -> 19800 | P6: =IF(ISERROR(VLOOKUP($O6,sh1マスター!$D$2:$E$5,2,0)),"",VLOOKUP($O6,sh1マスター!$D$2:$E$5,2,0)) ->  | R6: =sh3試算!BJ6 -> 11100 | S6: =sh3試算!BK6 -> 6200
A7: 3 | B7: 機械及び装置 | C7: =IF(ISERROR(VLOOKUP($B7,sh1マスター!$A$1:$B$7,2,0)),"",VLOOKUP($B7,sh1マスター!$A$1:$B$7,2,0)) -> 2 | E7: 機械装置B | F7: 1 | G7: 20161226 | H7: 1600000 | I7: 9 | N7: =sh3試算!BI7 -> 19800 | P7: =IF(ISERROR(VLOOKUP($O7,sh1マスター!$D$2:$E$5,2,0)),"",VLOOKUP($O7,sh1マスター!$D$2:$E$5,2,0)) ->  | R7: =sh3試算!BJ7 -> 11100 | S7: =sh3試算!BK7 -> 6200
A8: 4 | C8: =IF(ISERROR(VLOOKUP($B8,sh1マスター!$A$1:$B$7,2,0)),"",VLOOKUP($B8,sh1マスター!$A$1:$B$7,2,0)) ->  | N8: =sh3試算!BI8 ->  | P8: =IF(ISERROR(VLOOKUP($O8,sh1マスター!$D$2:$E$5,2,0)),"",VLOOKUP($O8,sh1マスター!$D$2:$E$5,2,0)) ->  | R8: =sh3試算!BJ8 ->  | S8: =sh3試算!BK8 -> 
A9: 5 | C9: =IF(ISERROR(VLOOKUP($B9,sh1マスター!$A$1:$B$7,2,0)),"",VLOOKUP($B9,sh1マスター!$A$1:$B$7,2,0)) ->  | N9: =sh3試算!BI9 ->  | P9: =IF(ISERROR(VLOOKUP($O9,sh1マスター!$D$2:$E$5,2,0)),"",VLOOKUP($O9,sh1マスター!$D$2:$E$5,2,0)) ->  | R9: =sh3試算!BJ9 ->  | S9: =sh3試算!BK9 -> 
A10: 6 | C10: =IF(ISERROR(VLOOKUP($B10,sh1マスター!$A$1:$B$7,2,0)),"",VLOOKUP($B10,sh1マスター!$A$1:$B$7,2,0)) ->  | N10: =sh3試算!BI10 ->  | P10: =IF(ISERROR(VLOOKUP($O10,sh1マスター!$D$2:$E$5,2,0)),"",VLOOKUP($O10,sh1マスター!$D$2:$E$5,2,0)) ->  | R10: =sh3試算!BJ10 ->  | S10: =sh3試算!BK10 -> 
A11: 7 | C11: =IF(ISERROR(VLOOKUP($B11,sh1マスター!$A$1:$B$7,2,0)),"",VLOOKUP($B11,sh1マスター!$A$1:$B$7,2,0)) ->  | N11: =sh3試算!BI11 ->  | P11: =IF(ISERROR(VLOOKUP($O11,sh1マスター!$D$2:$E$5,2,0)),"",VLOOKUP($O11,sh1マスター!$D$2:$E$5,2,0)) ->  | R11: =sh3試算!BJ11 ->  | S11: =sh3試算!BK11 -> 
A12: 8 | C12: =IF(ISERROR(VLOOKUP($B12,sh1マスター!$A$1:$B$7,2,0)),"",VLOOKUP($B12,sh1マスター!$A$1:$B$7,2,0)) ->  | N12: =sh3試算!BI12 ->  | P12: =IF(ISERROR(VLOOKUP($O12,sh1マスター!$D$2:$E$5,2,0)),"",VLOOKUP($O12,sh1マスター!$D$2:$E$5,2,0)) ->  | R12: =sh3試算!BJ12 ->  | S12: =sh3試算!BK12 -> 
A13: 9 | C13: =IF(ISERROR(VLOOKUP($B13,sh1マスター!$A$1:$B$7,2,0)),"",VLOOKUP($B13,sh1マスター!$A$1:$B$7,2,0)) ->  | N13: =sh3試算!BI13 ->  | P13: =IF(ISERROR(VLOOKUP($O13,sh1マスター!$D$2:$E$5,2,0)),"",VLOOKUP($O13,sh1マスター!$D$2:$E$5,2,0)) ->  | R13: =sh3試算!BJ13 ->  | S13: =sh3試算!BK13 -> 
A14: 10 | C14: =IF(ISERROR(VLOOKUP($B14,sh1マスター!$A$1:$B$7,2,0)),"",VLOOKUP($B14,sh1マスター!$A$1:$B$7,2,0)) ->  | N14: =sh3試算!BI14 ->  | P14: =IF(ISERROR(VLOOKUP($O14,sh1マスター!$D$2:$E$5,2,0)),"",VLOOKUP($O14,sh1マスター!$D$2:$E$5,2,0)) ->  | R14: =sh3試算!BJ14 ->  | S14: =sh3試算!BK14 -> 
A15: 11 | C15: =IF(ISERROR(VLOOKUP($B15,sh1マスター!$A$1:$B$7,2,0)),"",VLOOKUP($B15,sh1マスター!$A$1:$B$7,2,0)) ->  | N15: =sh3試算!BI15 ->  | P15: =IF(ISERROR(VLOOKUP($O15,sh1マスター!$D$2:$E$5,2,0)),"",VLOOKUP($O15,sh1マスター!$D$2:$E$5,2,0)) ->  | R15: =sh3試算!BJ15 ->  | S15: =sh3試算!BK15 -> 
A16: 12 | C16: =IF(ISERROR(VLOOKUP($B16,sh1マスター!$A$1:$B$7,2,0)),"",VLOOKUP($B16,sh1マスター!$A$1:$B$7,2,0)) ->  | N16: =sh3試算!BI16 ->  | P16: =IF(ISERROR(VLOOKUP($O16,sh1マスター!$D$2:$E$5,2,0)),"",VLOOKUP($O16,sh1マスター!$D$2:$E$5,2,0)) ->  | R16: =sh3試算!BJ16 ->  | S16: =sh3試算!BK16 -> 
A17: 13 | C17: =IF(ISERROR(VLOOKUP($B17,sh1マスター!$A$1:$B$7,2,0)),"",VLOOKUP($B17,sh1マスター!$A$1:$B$7,2,0)) ->  | N17: =sh3試算!BI17 ->  | P17: =IF(ISERROR(VLOOKUP($O17,sh1マスター!$D$2:$E$5,2,0)),"",VLOOKUP($O17,sh1マスター!$D$2:$E$5,2,0)) ->  | R17: =sh3試算!BJ17 ->  | S17: =sh3試算!BK17 -> 
A18: 14 | C18: =IF(ISERROR(VLOOKUP($B18,sh1マスター!$A$1:$B$7,2,0)),"",VLOOKUP($B18,sh1マスター!$A$1:$B$7,2,0)) ->  | N18: =sh3試算!BI18 ->  | P18: =IF(ISERROR(VLOOKUP($O18,sh1マスター!$D$2:$E$5,2,0)),"",VLOOKUP($O18,sh1マスター!$D$2:$E$5,2,0)) ->  | R18: =sh3試算!BJ18 ->  | S18: =sh3試算!BK18 -> 
A19: 15 | C19: =IF(ISERROR(VLOOKUP($B19,sh1マスター!$A$1:$B$7,2,0)),"",VLOOKUP($B19,sh1マスター!$A$1:$B$7,2,0)) ->  | N19: =sh3試算!BI19 ->  | P19: =IF(ISERROR(VLOOKUP($O19,sh1マスター!$D$2:$E$5,2,0)),"",VLOOKUP($O19,sh1マスター!$D$2:$E$5,2,0)) ->  | R19: =sh3試算!BJ19 ->  | S19: =sh3試算!BK19 -> 
A20: 16 | C20: =IF(ISERROR(VLOOKUP($B20,sh1マスター!$A$1:$B$7,2,0)),"",VLOOKUP($B20,sh1マスター!$A$1:$B$7,2,0)) ->  | N20: =sh3試算!BI20 ->  | P20: =IF(ISERROR(VLOOKUP($O20,sh1マスター!$D$2:$E$5,2,0)),"",VLOOKUP($O20,sh1マスター!$D$2:$E$5,2,0)) ->  | R20: =sh3試算!BJ20 ->  | S20: =sh3試算!BK20 -> 
A21: 17 | C21: =IF(ISERROR(VLOOKUP($B21,sh1マスター!$A$1:$B$7,2,0)),"",VLOOKUP($B21,sh1マスター!$A$1:$B$7,2,0)) ->  | K21: =IF(ISERROR(VLOOKUP($I21,sh1マスター!$G:$H,2,0)),"",VLOOKUP($I21,sh1マスター!$G:$H,2,0)) ->  | N21: =sh3試算!BI21 ->  | P21: =IF(ISERROR(VLOOKUP($O21,sh1マスター!$D$2:$E$5,2,0)),"",VLOOKUP($O21,sh1マスター!$D$2:$E$5,2,0)) ->  | R21: =sh3試算!BJ21 ->  | S21: =sh3試算!BK21 -> 
A22: 18 | C22: =IF(ISERROR(VLOOKUP($B22,sh1マスター!$A$1:$B$7,2,0)),"",VLOOKUP($B22,sh1マスター!$A$1:$B$7,2,0)) ->  | K22: =IF(ISERROR(VLOOKUP($I22,sh1マスター!$G:$H,2,0)),"",VLOOKUP($I22,sh1マスター!$G:$H,2,0)) ->  | N22: =sh3試算!BI22 ->  | P22: =IF(ISERROR(VLOOKUP($O22,sh1マスター!$D$2:$E$5,2,0)),"",VLOOKUP($O22,sh1マスター!$D$2:$E$5,2,0)) ->  | R22: =sh3試算!BJ22 ->  | S22: =sh3試算!BK22 -> 
A23: 19 | C23: =IF(ISERROR(VLOOKUP($B23,sh1マスター!$A$1:$B$7,2,0)),"",VLOOKUP($B23,sh1マスター!$A$1:$B$7,2,0)) ->  | K23: =IF(ISERROR(VLOOKUP($I23,sh1マスター!$G:$H,2,0)),"",VLOOKUP($I23,sh1マスター!$G:$H,2,0)) ->  | N23: =sh3試算!BI23 ->  | P23: =IF(ISERROR(VLOOKUP($O23,sh1マスター!$D$2:$E$5,2,0)),"",VLOOKUP($O23,sh1マスター!$D$2:$E$5,2,0)) ->  | R23: =sh3試算!BJ23 ->  | S23: =sh3試算!BK23 -> 
A24: 20 | C24: =IF(ISERROR(VLOOKUP($B24,sh1マスター!$A$1:$B$7,2,0)),"",VLOOKUP($B24,sh1マスター!$A$1:$B$7,2,0)) ->  | K24: =IF(ISERROR(VLOOKUP($I24,sh1マスター!$G:$H,2,0)),"",VLOOKUP($I24,sh1マスター!$G:$H,2,0)) ->  | N24: =sh3試算!BI24 ->  | P24: =IF(ISERROR(VLOOKUP($O24,sh1マスター!$D$2:$E$5,2,0)),"",VLOOKUP($O24,sh1マスター!$D$2:$E$5,2,0)) ->  | R24: =sh3試算!BJ24 ->  | S24: =sh3試算!BK24 -> 
A25: 21 | C25: =IF(ISERROR(VLOOKUP($B25,sh1マスター!$A$1:$B$7,2,0)),"",VLOOKUP($B25,sh1マスター!$A$1:$B$7,2,0)) ->  | K25: =IF(ISERROR(VLOOKUP($I25,sh1マスター!$G:$H,2,0)),"",VLOOKUP($I25,sh1マスター!$G:$H,2,0)) ->  | N25: =sh3試算!BI25 ->  | P25: =IF(ISERROR(VLOOKUP($O25,sh1マスター!$D$2:$E$5,2,0)),"",VLOOKUP($O25,sh1マスター!$D$2:$E$5,2,0)) ->  | R25: =sh3試算!BJ25 ->  | S25: =sh3試算!BK25 -> 
A26: 22 | C26: =IF(ISERROR(VLOOKUP($B26,sh1マスター!$A$1:$B$7,2,0)),"",VLOOKUP($B26,sh1マスター!$A$1:$B$7,2,0)) ->  | K26: =IF(ISERROR(VLOOKUP($I26,sh1マスター!$G:$H,2,0)),"",VLOOKUP($I26,sh1マスター!$G:$H,2,0)) ->  | N26: =sh3試算!BI26 ->  | P26: =IF(ISERROR(VLOOKUP($O26,sh1マスター!$D$2:$E$5,2,0)),"",VLOOKUP($O26,sh1マスター!$D$2:$E$5,2,0)) ->  | R26: =sh3試算!BJ26 ->  | S26: =sh3試算!BK26 -> 
A27: 23 | C27: =IF(ISERROR(VLOOKUP($B27,sh1マスター!$A$1:$B$7,2,0)),"",VLOOKUP($B27,sh1マスター!$A$1:$B$7,2,0)) ->  | K27: =IF(ISERROR(VLOOKUP($I27,sh1マスター!$G:$H,2,0)),"",VLOOKUP($I27,sh1マスター!$G:$H,2,0)) ->  | N27: =sh3試算!BI27 ->  | P27: =IF(ISERROR(VLOOKUP($O27,sh1マスター!$D$2:$E$5,2,0)),"",VLOOKUP($O27,sh1マスター!$D$2:$E$5,2,0)) ->  | R27: =sh3試算!BJ27 ->  | S27: =sh3試算!BK27 -> 
A28: 24 | C28: =IF(ISERROR(VLOOKUP($B28,sh1マスター!$A$1:$B$7,2,0)),"",VLOOKUP($B28,sh1マスター!$A$1:$B$7,2,0)) ->  | K28: =IF(ISERROR(VLOOKUP($I28,sh1マスター!$G:$H,2,0)),"",VLOOKUP($I28,sh1マスター!$G:$H,2,0)) ->  | N28: =sh3試算!BI28 ->  | P28: =IF(ISERROR(VLOOKUP($O28,sh1マスター!$D$2:$E$5,2,0)),"",VLOOKUP($O28,sh1マスター!$D$2:$E$5,2,0)) ->  | R28: =sh3試算!BJ28 ->  | S28: =sh3試算!BK28 -> 
A29: 25 | C29: =IF(ISERROR(VLOOKUP($B29,sh1マスター!$A$1:$B$7,2,0)),"",VLOOKUP($B29,sh1マスター!$A$1:$B$7,2,0)) ->  | K29: =IF(ISERROR(VLOOKUP($I29,sh1マスター!$G:$H,2,0)),"",VLOOKUP($I29,sh1マスター!$G:$H,2,0)) ->  | N29: =sh3試算!BI29 ->  | P29: =IF(ISERROR(VLOOKUP($O29,sh1マスター!$D$2:$E$5,2,0)),"",VLOOKUP($O29,sh1マスター!$D$2:$E$5,2,0)) ->  | R29: =sh3試算!BJ29 ->  | S29: =sh3試算!BK29 -> 
A30: 26 | C30: =IF(ISERROR(VLOOKUP($B30,sh1マスター!$A$1:$B$7,2,0)),"",VLOOKUP($B30,sh1マスター!$A$1:$B$7,2,0)) ->  | K30: =IF(ISERROR(VLOOKUP($I30,sh1マスター!$G:$H,2,0)),"",VLOOKUP($I30,sh1マスター!$G:$H,2,0)) ->  | N30: =sh3試算!BI30 ->  | P30: =IF(ISERROR(VLOOKUP($O30,sh1マスター!$D$2:$E$5,2,0)),"",VLOOKUP($O30,sh1マスター!$D$2:$E$5,2,0)) ->  | R30: =sh3試算!BJ30 ->  | S30: =sh3試算!BK30 -> 
H31: =SUM(H5:H30) -> 4800000 | N31: =SUM(N5:N30) -> 49400 | R31: =SUM(R5:R30) -> 27700 | S31: 15400

Sheet sh3試算
E1: 種類別明細書（増加資産・全資産用） | F1: 申告 | G1: =sh2増加!G1 -> 2017 | H1: 年 | I1: 税率 | J1: =sh2増加!N2 -> 0.014
A4: 行番号 | B4: 資産の種類(ﾄｼﾞ) | C4: 資産の種類 | D4: 資産コード（任意） | E4: 資産の名称等 | F4: 数量 | G4: 取得年月日 | H4: 取得価額 | I4: 耐用年数 | J4: 減価残存率 | K4: 1 | L4: 2 | M4: 3 | N4: 4 | O4: 5 | P4: 6 | Q4: 7 | R4: 8 | S4: 9 | T4: 10 | U4: 11 | V4: 12 | W4: 13 | X4: 14 | Y4: 15 | Z4: 16 | AA4: 17 | AB4: 18 | AC4: 19 | AD4: 20 | AE4: 21 | AF4: 22 | AG4: 23 | AH4: 24 | AI4: 25 | AJ4: 26 | AK4: 27 | AL4: 28 | AM4: 29 | AN4: 30 | AO4: 31 | AP4: 32 | AQ4: 33 | AR4: 34 | AS4: 35 | AT4: 36 | AU4: 37 | AV4: 38 | AW4: 39 | AX4: 40 | AY4: 41 | AZ4: 42 | BA4: 43 | BB4: 44 | BC4: 45 | BD4: 46 | BE4: 47 | BF4: 48 | BG4: 49 | BH4: 50 | BI4: =G1 -> 2017 | BJ4: =BI4+1 -> 2018 | BK4: =BJ4+1 -> 2019 | BL4: 2020 | BM4: 2021 | BN4: 2022 | BO4: 2023 | BP4: 2024 | BQ4: 2025 | BR4: 2026 | BS4: 2027 | BT4: 2028 | BU4: 2029 | BV4: 2030 | BW4: 2031 | BX4: 2032 | BY4: 2033 | BZ4: 2034 | CA4: 2035 | CB4: =CA4+1 -> 2036 | CC4: 2037 | CD4: 2038 | CE4: 2039 | CF4: 2040 | CG4: 2041 | CH4: 2042 | CI4: 2043 | CJ4: 2044
A5: =sh2増加!A5 -> 1 | B5: =sh2増加!B5 -> 工具、器具及び備品 | C5: =sh2増加!C5 -> 6 | D5: =sh2増加!D5 -> 0 | E5: =sh2増加!E5 -> 工具、器具及び備品 | F5: =sh2増加!F5 -> 1 | G5: =sh2増加!G5 -> 20150801 | H5: =sh2増加!H5 -> 1600000 | I5: =sh2増加!I5 -> 4 | J5: =IF(ISERROR(VLOOKUP($I5,sh1マスター!$G:$H,2,0)),"",VLOOKUP($I5,sh1マスター!$G:$H,2,0)) -> 0.438 | K5: =IF(ISERROR(ROUNDDOWN(H5*(1-J5/2),0)),"",ROUNDDOWN(H5*(1-J5/2),0)) -> 1249600 | L5: =IF(ISERROR(ROUNDDOWN(K5*(1-$J$5),0)),"",IF($H$5*5%<ROUNDDOWN(K5*(1-$J$5),0),ROUNDDOWN(K5*(1-$J$5),0),$H$5*5%)) -> 702275 | M5: =IF(ISERROR(ROUNDDOWN(L5*(1-$J$5),0)),"",IF($H$5*5%<ROUNDDOWN(L5*(1-$J$5),0),ROUNDDOWN(L5*(1-$J$5),0),$H$5*5%)) -> 394678 | N5: 221809 | O5: 124656 | P5: 80000 | Q5: 80000 | R5: 80000 | S5: 80000 | T5: 80000 | U5: 80000 | V5: 80000 | W5: 80000 | X5: 80000 | Y5: 80000 | Z5: 80000 | AA5: 80000 | AB5: 80000 | AC5: 80000 | AD5: 80000 | AE5: 80000 | AF5: 80000 | AG5: 80000 | AH5: 80000 | AI5: 80000 | AJ5: 80000 | AK5: 80000 | AL5: 80000 | AM5: 80000 | AN5: 80000 | AO5: 80000 | AP5: 80000 | AQ5: 80000 | AR5: 80000 | AS5: 80000 | AT5: 80000 | AU5: 80000 | AV5: 80000 | AW5: 80000 | AX5: 80000 | AY5: 80000 | AZ5: 80000 | BA5: 80000 | BB5: 80000 | BC5: 80000 | BD5: 80000 | BE5: 80000 | BF5: 80000 | BG5: 80000 | BH5: 80000 | BI5: =IF(ISERROR(HLOOKUP(MATCH(BI$4-VALUE(LEFT($G5,4)),$K$4:$BH$4,0),$K$4:$BH$30,$A5+1,0)),"",ROUNDDOWN(ROUNDDOWN(HLOOKUP(MATCH(BI$4-VALUE(LEFT($G5,4)),$K$4:$BH$4,0),$K$4:$BH$30,$A5+1,0),-3)*$J$1,-2)) -> 9800 | BJ5: =IF(ISERROR(HLOOKUP(MATCH(BJ$4-VALUE(LEFT($G5,4)),$K$4:$BH$4,0),$K$4:$BH$30,$A5+1,0)),"",ROUNDDOWN(ROUNDDOWN(HLOOKUP(MATCH(BJ$4-VALUE(LEFT($G5,4)),$K$4:$BH$4,0),$K$4:$BH$30,$A5+1,0),-3)*$J$1,-2)) -> 5500 | BK5: 3000 | BL5: 1700 | BM5: 1100 | BN5: 1100 | BO5: 1100 | BP5: 1100 | BQ5: 1100 | BR5: 1100 | BS5: 1100 | BT5: 1100 | BU5: 1100 | BV5: 1100 | BW5: 1100 | BX5: 1100 | BY5: 1100 | BZ5: 1100 | CA5: 1100 | CB5: =IF(ISERROR(HLOOKUP(MATCH(CB$4-VALUE(LEFT($G5,4)),$K$4:$BH$4,0),$K$4:$BH$30,$A5+1,0)),"",ROUNDDOWN(ROUNDDOWN(HLOOKUP(MATCH(CB$4-VALUE(LEFT($G5,4)),$K$4:$BH$4,0),$K$4:$BH$30,$A5+1,0),-3)*$J$1,-2)) -> 1100 | CC5: 1100 | CD5: 1100 | CE5: 1100 | CF5: 1100 | CG5: 1100 | CH5: 1100 | CI5: 1100 | CJ5: 1100
A6: =sh2増加!A6 -> 2 | B6: =sh2増加!B6 -> 機械及び装置 | C6: =sh2増加!C6 -> 2 | D6: =sh2増加!D6 -> 0 | E6: =sh2増加!E6 -> 機械装置A | F6: =sh2増加!F6 -> 1 | G6: =sh2増加!G6 -> 20160111 | H6: =sh2増加!H6 -> 1600000 | I6: =sh2増加!I6 -> 9 | J6: =IF(ISERROR(VLOOKUP($I6,sh1マスター!$G:$H,2,0)),"",VLOOKUP($I6,sh1マスター!$G:$H,2,0)) -> 0.226 | K6: =IF(ISERROR(ROUNDDOWN(H6*(1-J6/2),0)),"",ROUNDDOWN(H6*(1-J6/2),0)) -> 1419200 | L6: =IF(ISERROR(ROUNDDOWN(K6*(1-$J$5),0)),"",IF($H$5*5%<ROUNDDOWN(K6*(1-$J$5),0),ROUNDDOWN(K6*(1-$J$5),0),$H$5*5%)) -> 797590 | M6: =IF(ISERROR(ROUNDDOWN(L6*(1-$J$5),0)),"",IF($H$5*5%<ROUNDDOWN(L6*(1-$J$5),0),ROUNDDOWN(L6*(1-$J$5),0),$H$5*5%)) -> 448245 | N6: 251913 | O6: 141575 | P6: 80000 | Q6: 80000 | R6: 80000 | S6: 80000 | T6: 80000 | U6: 80000 | V6: 80000 | W6: 80000 | X6: 80000 | Y6: 80000 | Z6: 80000 | AA6: 80000 | AB6: 80000 | AC6: 80000 | AD6: 80000 | AE6: 80000 | AF6: 80000 | AG6: 80000 | AH6: 80000 | AI6: 80000 | AJ6: 80000 | AK6: 80000 | AL6: 80000 | AM6: 80000 | AN6: 80000 | AO6: 80000 | AP6: 80000 | AQ6: 80000 | AR6: 80000 | AS6: 80000 | AT6: 80000 | AU6: 80000 | AV6: 80000 | AW6: 80000 | AX6: 80000 | AY6: 80000 | AZ6: 80000 | BA6: 80000 | BB6: 80000 | BC6: 80000 | BD6: 80000 | BE6: 80000 | BF6: 80000 | BG6: 80000 | BH6: 80000 | BI6: =IF(ISERROR(HLOOKUP(MATCH(BI$4-VALUE(LEFT($G6,4)),$K$4:$BH$4,0),$K$4:$BH$30,$A6+1,0)),"",ROUNDDOWN(ROUNDDOWN(HLOOKUP(MATCH(BI$4-VALUE(LEFT($G6,4)),$K$4:$BH$4,0),$K$4:$BH$30,$A6+1,0),-3)*$J$1,-2)) -> 19800 | BJ6: 11100 | BK6: 6200 | BL6: 3500 | BM6: 1900 | BN6: 1100 | BO6: 1100 | BP6: 1100 | BQ6: 1100 | BR6: 1100 | BS6: 1100 | BT6: 1100 | BU6: 1100 | BV6: 1100 | BW6: 1100 | BX6: 1100 | BY6: 1100 | BZ6: 1100 | CA6: 1100 | CB6: 1100 | CC6: 1100 | CD6: 1100 | CE6: 1100 | CF6: 1100 | CG6: 1100 | CH6: 1100 | CI6: 1100 | CJ6: 1100
A7: =sh2増加!A7 -> 3 | B7: =sh2増加!B7 -> 機械及び装置 | C7: =sh2増加!C7 -> 2 | D7: =sh2増加!D7 -> 0 | E7: =sh2増加!E7 -> 機械装置B | F7: =sh2増加!F7 -> 1 | G7: =sh2増加!G7 -> 20161226 | H7: =sh2増加!H7 -> 1600000 | I7: =sh2増加!I7 -> 9 | J7: =IF(ISERROR(VLOOKUP($I7,sh1マスター!$G:$H,2,0)),"",VLOOKUP($I7,sh1マスター!$G:$H,2,0)) -> 0.226 | K7: 1419200 | L7: 797590 | M7: =IF(ISERROR(ROUNDDOWN(L7*(1-$J$5),0)),"",IF($H$5*5%<ROUNDDOWN(L7*(1-$J$5),0),ROUNDDOWN(L7*(1-$J$5),0),$H$5*5%)) -> 448245 | N7: 251913 | O7: 141575 | P7: 80000 | Q7: 80000 | R7: 80000 | S7: 80000 | T7: 80000 | U7: 80000 | V7: 80000 | W7: 80000 | X7: 80000 | Y7: 80000 | Z7: 80000 | AA7: 80000 | AB7: 80000 | AC7: 80000 | AD7: 80000 | AE7: 80000 | AF7: 80000 | AG7: 80000 | AH7: 80000 | AI7: 80000 | AJ7: 80000 | AK7: 80000 | AL7: 80000 | AM7: 80000 | AN7: 80000 | AO7: 80000 | AP7: 80000 | AQ7: 80000 | AR7: 80000 | AS7: 80000 | AT7: 80000 | AU7: 80000 | AV7: 80000 | AW7: 80000 | AX7: 80000 | AY7: 80000 | AZ7: 80000 | BA7: 80000 | BB7: 80000 | BC7: 80000 | BD7: 80000 | BE7: 80000 | BF7: 80000 | BG7: 80000 | BH7: 80000 | BI7: 19800 | BJ7: 11100 | BK7: 6200 | BL7: 3500 | BM7: 1900 | BN7: 1100 | BO7: 1100 | BP7: 1100 | BQ7: 1100 | BR7: 1100 | BS7: 1100 | BT7: 1100 | BU7: 1100 | BV7: 1100 | BW7: 1100 | BX7: 1100 | BY7: 1100 | BZ7: 1100 | CA7: 1100 | CB7: 1100 | CC7: 1100 | CD7: 1100 | CE7: 1100 | CF7: 1100 | CG7: 1100 | CH7: 1100 | CI7: 1100 | CJ7: 1100
A8: =sh2増加!A8 -> 4 | B8: =sh2増加!B8 -> 0 | C8: =sh2増加!C8 ->  | D8: =sh2増加!D8 -> 0 | E8: =sh2増加!E8 -> 0 | F8: =sh2増加!F8 -> 0 | G8: =sh2増加!G8 -> 0 | H8: =sh2増加!H8 -> 0 | I8: =sh2増加!I8 -> 0 | J8: =IF(ISERROR(VLOOKUP($I8,sh1マスター!$G:$H,2,0)),"",VLOOKUP($I8,sh1マスター!$G:$H,2,0)) ->  | M8: =IF(ISERROR(ROUNDDOWN(L8*(1-$J$5),0)),"",IF($H$5*5%<ROUNDDOWN(L8*(1-$J$5),0),ROUNDDOWN(L8*(1-$J$5),0),$H$5*5%)) -> 
A9: =sh2増加!A9 -> 5 | B9: =sh2増加!B9 -> 0 | C9: =sh2増加!C9 ->  | D9: =sh2増加!D9 -> 0 | E9: =sh2増加!E9 -> 0 | F9: =sh2増加!F9 -> 0 | G9: =sh2増加!G9 -> 0 | H9: =sh2増加!H9 -> 0 | I9: =sh2増加!I9 -> 0 | J9: =IF(ISERROR(VLOOKUP($I9,sh1マスター!$G:$H,2,0)),"",VLOOKUP($I9,sh1マスター!$G:$H,2,0)) ->  | M9: =IF(ISERROR(ROUNDDOWN(L9*(1-$J$5),0)),"",IF($H$5*5%<ROUNDDOWN(L9*(1-$J$5),0),ROUNDDOWN(L9*(1-$J$5),0),$H$5*5%)) -> 
A10: =sh2増加!A10 -> 6 | B10: =sh2増加!B10 -> 0 | C10: =sh2増加!C10 ->  | D10: =sh2増加!D10 -> 0 | E10: =sh2増加!E10 -> 0 | F10: =sh2増加!F10 -> 0 | G10: =sh2増加!G10 -> 0 | H10: =sh2増加!H10 -> 0 | I10: =sh2増加!I10 -> 0 | J10: =IF(ISERROR(VLOOKUP($I10,sh1マスター!$G:$H,2,0)),"",VLOOKUP($I10,sh1マスター!$G:$H,2,0)) ->  | M10: =IF(ISERROR(ROUNDDOWN(L10*(1-$J$5),0)),"",IF($H$5*5%<ROUNDDOWN(L10*(1-$J$5),0),ROUNDDOWN(L10*(1-$J$5),0),$H$5*5%)) -> 
A11: =sh2増加!A11 -> 7 | B11: =sh2増加!B11 -> 0 | C11: =sh2増加!C11 ->  | D11: =sh2増加!D11 -> 0 | E11: =sh2増加!E11 -> 0 | F11: =sh2増加!F11 -> 0 | G11: =sh2増加!G11 -> 0 | H11: =sh2増加!H11 -> 0 | I11: =sh2増加!I11 -> 0 | J11: =IF(ISERROR(VLOOKUP($I11,sh1マスター!$G:$H,2,0)),"",VLOOKUP($I11,sh1マスター!$G:$H,2,0)) ->  | M11: =IF(ISERROR(ROUNDDOWN(L11*(1-$J$5),0)),"",IF($H$5*5%<ROUNDDOWN(L11*(1-$J$5),0),ROUNDDOWN(L11*(1-$J$5),0),$H$5*5%)) -> 
A12: =sh2増加!A12 -> 8 | B12: =sh2増加!B12 -> 0 | C12: =sh2増加!C12 ->  | D12: =sh2増加!D12 -> 0 | E12: =sh2増加!E12 -> 0 | F12: =sh2増加!F12 -> 0 | G12: =sh2増加!G12 -> 0 | H12: =sh2増加!H12 -> 0 | I12: =sh2増加!I12 -> 0 | J12: =IF(ISERROR(VLOOKUP($I12,sh1マスター!$G:$H,2,0)),"",VLOOKUP($I12,sh1マスター!$G:$H,2,0)) ->  | M12: =IF(ISERROR(ROUNDDOWN(L12*(1-$J$5),0)),"",IF($H$5*5%<ROUNDDOWN(L12*(1-$J$5),0),ROUNDDOWN(L12*(1-$J$5),0),$H$5*5%)) -> 
A13: =sh2増加!A13 -> 9 | B13: =sh2増加!B13 -> 0 | C13: =sh2増加!C13 ->  | D13: =sh2増加!D13 -> 0 | E13: =sh2増加!E13 -> 0 | F13: =sh2増加!F13 -> 0 | G13: =sh2増加!G13 -> 0 | H13: =sh2増加!H13 -> 0 | I13: =sh2増加!I13 -> 0 | J13: =IF(ISERROR(VLOOKUP($I13,sh1マスター!$G:$H,2,0)),"",VLOOKUP($I13,sh1マスター!$G:$H,2,0)) ->  | M13: =IF(ISERROR(ROUNDDOWN(L13*(1-$J$5),0)),"",IF($H$5*5%<ROUNDDOWN(L13*(1-$J$5),0),ROUNDDOWN(L13*(1-$J$5),0),$H$5*5%)) -> 
A14: =sh2増加!A14 -> 10 | B14: =sh2増加!B14 -> 0 | C14: =sh2増加!C14 ->  | D14: =sh2増加!D14 -> 0 | E14: =sh2増加!E14 -> 0 | F14: =sh2増加!F14 -> 0 | G14: =sh2増加!G14 -> 0 | H14: =sh2増加!H14 -> 0 | I14: =sh2増加!I14 -> 0 | J14: =IF(ISERROR(VLOOKUP($I14,sh1マスター!$G:$H,2,0)),"",VLOOKUP($I14,sh1マスター!$G:$H,2,0)) ->  | M14: =IF(ISERROR(ROUNDDOWN(L14*(1-$J$5),0)),"",IF($H$5*5%<ROUNDDOWN(L14*(1-$J$5),0),ROUNDDOWN(L14*(1-$J$5),0),$H$5*5%)) -> 
A15: =sh2増加!A15 -> 11 | B15: =sh2増加!B15 -> 0 | C15: =sh2増加!C15 ->  | D15: =sh2増加!D15 -> 0 | E15: =sh2増加!E15 -> 0 | F15: =sh2増加!F15 -> 0 | G15: =sh2増加!G15 -> 0 | H15: =sh2増加!H15 -> 0 | I15: =sh2増加!I15 -> 0 | J15: =IF(ISERROR(VLOOKUP($I15,sh1マスター!$G:$H,2,0)),"",VLOOKUP($I15,sh1マスター!$G:$H,2,0)) ->  | M15: =IF(ISERROR(ROUNDDOWN(L15*(1-$J$5),0)),"",IF($H$5*5%<ROUNDDOWN(L15*(1-$J$5),0),ROUNDDOWN(L15*(1-$J$5),0),$H$5*5%)) -> 
A16: =sh2増加!A16 -> 12 | B16: =sh2増加!B16 -> 0 | C16: =sh2増加!C16 ->  | D16: =sh2増加!D16 -> 0 | E16: =sh2増加!E16 -> 0 | F16: =sh2増加!F16 -> 0 | G16: =sh2増加!G16 -> 0 | H16: =sh2増加!H16 -> 0 | I16: =sh2増加!I16 -> 0 | J16: =IF(ISERROR(VLOOKUP($I16,sh1マスター!$G:$H,2,0)),"",VLOOKUP($I16,sh1マスター!$G:$H,2,0)) ->  | M16: =IF(ISERROR(ROUNDDOWN(L16*(1-$J$5),0)),"",IF($H$5*5%<ROUNDDOWN(L16*(1-$J$5),0),ROUNDDOWN(L16*(1-$J$5),0),$H$5*5%)) -> 
A17: =sh2増加!A17 -> 13 | B17: =sh2増加!B17 -> 0 | C17: =sh2増加!C17 ->  | D17: =sh2増加!D17 -> 0 | E17: =sh2増加!E17 -> 0 | F17: =sh2増加!F17 -> 0 | G17: =sh2増加!G17 -> 0 | H17: =sh2増加!H17 -> 0 | I17: =sh2増加!I17 -> 0 | J17: =IF(ISERROR(VLOOKUP($I17,sh1マスター!$G:$H,2,0)),"",VLOOKUP($I17,sh1マスター!$G:$H,2,0)) ->  | M17: =IF(ISERROR(ROUNDDOWN(L17*(1-$J$5),0)),"",IF($H$5*5%<ROUNDDOWN(L17*(1-$J$5),0),ROUNDDOWN(L17*(1-$J$5),0),$H$5*5%)) -> 
A18: =sh2増加!A18 -> 14 | B18: =sh2増加!B18 -> 0 | C18: =sh2増加!C18 ->  | D18: =sh2増加!D18 -> 0 | E18: =sh2増加!E18 -> 0 | F18: =sh2増加!F18 -> 0 | G18: =sh2増加!G18 -> 0 | H18: =sh2増加!H18 -> 0 | I18: =sh2増加!I18 -> 0 | J18: =IF(ISERROR(VLOOKUP($I18,sh1マスター!$G:$H,2,0)),"",VLOOKUP($I18,sh1マスター!$G:$H,2,0)) ->  | M18: =IF(ISERROR(ROUNDDOWN(L18*(1-$J$5),0)),"",IF($H$5*5%<ROUNDDOWN(L18*(1-$J$5),0),ROUNDDOWN(L18*(1-$J$5),0),$H$5*5%)) -> 
A19: =sh2増加!A19 -> 15 | B19: =sh2増加!B19 -> 0 | C19: =sh2増加!C19 ->  | D19: =sh2増加!D19 -> 0 | E19: =sh2増加!E19 -> 0 | F19: =sh2増加!F19 -> 0 | G19: =sh2増加!G19 -> 0 | H19: =sh2増加!H19 -> 0 | I19: =sh2増加!I19 -> 0 | J19: =IF(ISERROR(VLOOKUP($I19,sh1マスター!$G:$H,2,0)),"",VLOOKUP($I19,sh1マスター!$G:$H,2,0)) ->  | M19: =IF(ISERROR(ROUNDDOWN(L19*(1-$J$5),0)),"",IF($H$5*5%<ROUNDDOWN(L19*(1-$J$5),0),ROUNDDOWN(L19*(1-$J$5),0),$H$5*5%)) -> 
A20: =sh2増加!A20 -> 16 | B20: =sh2増加!B20 -> 0 | C20: =sh2増加!C20 ->  | D20: =sh2増加!D20 -> 0 | E20: =sh2増加!E20 -> 0 | F20: =sh2増加!F20 -> 0 | G20: =sh2増加!G20 -> 0 | H20: =sh2増加!H20 -> 0 | I20: =sh2増加!I20 -> 0 | J20: =IF(ISERROR(VLOOKUP($I20,sh1マスター!$G:$H,2,0)),"",VLOOKUP($I20,sh1マスター!$G:$H,2,0)) ->  | M20: =IF(ISERROR(ROUNDDOWN(L20*(1-$J$5),0)),"",IF($H$5*5%<ROUNDDOWN(L20*(1-$J$5),0),ROUNDDOWN(L20*(1-$J$5),0),$H$5*5%)) ->  | BJ20: =IF(ISERROR(HLOOKUP(MATCH(BJ$4-VALUE(LEFT($G20,4)),$K$4:$BH$4,0),$K$4:$BH$30,$A20+1,0)),"",ROUNDDOWN(ROUNDDOWN(HLOOKUP(MATCH(BJ$4-VALUE(LEFT($G20,4)),$K$4:$BH$4,0),$K$4:$BH$30,$A20+1,0),-3)*$J$1,-2)) -> 
A21: =sh2増加!A21 -> 17 | B21: =sh2増加!B21 -> 0 | C21: =sh2増加!C21 ->  | D21: =sh2増加!D21 -> 0 | E21: =sh2増加!E21 -> 0 | F21: =sh2増加!F21 -> 0 | G21: =sh2増加!G21 -> 0 | H21: =sh2増加!H21 -> 0 | I21: =sh2増加!I21 -> 0 | J21: =IF(ISERROR(VLOOKUP($I21,sh1マスター!$G:$H,2,0)),"",VLOOKUP($I21,sh1マスター!$G:$H,2,0)) ->  | M21: =IF(ISERROR(ROUNDDOWN(L21*(1-$J$5),0)),"",IF($H$5*5%<ROUNDDOWN(L21*(1-$J$5),0),ROUNDDOWN(L21*(1-$J$5),0),$H$5*5%)) ->  | CB21: =IF(ISERROR(HLOOKUP(MATCH(CB$4-VALUE(LEFT($G21,4)),$K$4:$BH$4,0),$K$4:$BH$30,$A21+1,0)),"",ROUNDDOWN(ROUNDDOWN(HLOOKUP(MATCH(CB$4-VALUE(LEFT($G21,4)),$K$4:$BH$4,0),$K$4:$BH$30,$A21+1,0),-3)*$J$1,-2)) -> 
A22: =sh2増加!A22 -> 18 | B22: =sh2増加!B22 -> 0 | C22: =sh2増加!C22 ->  | D22: =sh2増加!D22 -> 0 | E22: =sh2増加!E22 -> 0 | F22: =sh2増加!F22 -> 0 | G22: =sh2増加!G22 -> 0 | H22: =sh2増加!H22 -> 0 | I22: =sh2増加!I22 -> 0 | J22: =IF(ISERROR(VLOOKUP($I22,sh1マスター!$G:$H,2,0)),"",VLOOKUP($I22,sh1マスター!$G:$H,2,0)) ->  | M22: =IF(ISERROR(ROUNDDOWN(L22*(1-$J$5),0)),"",IF($H$5*5%<ROUNDDOWN(L22*(1-$J$5),0),ROUNDDOWN(L22*(1-$J$5),0),$H$5*5%)) -> 
A23: =sh2増加!A23 -> 19 | B23: =sh2増加!B23 -> 0 | C23: =sh2増加!C23 ->  | D23: =sh2増加!D23 -> 0 | E23: =sh2増加!E23 -> 0 | F23: =sh2増加!F23 -> 0 | G23: =sh2増加!G23 -> 0 | H23: =sh2増加!H23 -> 0 | I23: =sh2増加!I23 -> 0 | J23: =IF(ISERROR(VLOOKUP($I23,sh1マスター!$G:$H,2,0)),"",VLOOKUP($I23,sh1マスター!$G:$H,2,0)) ->  | M23: =IF(ISERROR(ROUNDDOWN(L23*(1-$J$5),0)),"",IF($H$5*5%<ROUNDDOWN(L23*(1-$J$5),0),ROUNDDOWN(L23*(1-$J$5),0),$H$5*5%)) -> 
A24: =sh2増加!A24 -> 20 | B24: =sh2増加!B24 -> 0 | C24: =sh2増加!C24 ->  | D24: =sh2増加!D24 -> 0 | E24: =sh2増加!E24 -> 0 | F24: =sh2増加!F24 -> 0 | G24: =sh2増加!G24 -> 0 | H24: =sh2増加!H24 -> 0 | I24: =sh2増加!I24 -> 0 | J24: =IF(ISERROR(VLOOKUP($I24,sh1マスター!$G:$H,2,0)),"",VLOOKUP($I24,sh1マスター!$G:$H,2,0)) ->  | M24: =IF(ISERROR(ROUNDDOWN(L24*(1-$J$5),0)),"",IF($H$5*5%<ROUNDDOWN(L24*(1-$J$5),0),ROUNDDOWN(L24*(1-$J$5),0),$H$5*5%)) -> 
A25: =sh2増加!A25 -> 21 | B25: =sh2増加!B25 -> 0 | C25: =sh2増加!C25 ->  | D25: =sh2増加!D25 -> 0 | E25: =sh2増加!E25 -> 0 | F25: =sh2増加!F25 -> 0 | G25: =sh2増加!G25 -> 0 | H25: =sh2増加!H25 -> 0 | I25: =sh2増加!I25 -> 0 | J25: =IF(ISERROR(VLOOKUP($I25,sh1マスター!$G:$H,2,0)),"",VLOOKUP($I25,sh1マスター!$G:$H,2,0)) ->  | M25: =IF(ISERROR(ROUNDDOWN(L25*(1-$J$5),0)),"",IF($H$5*5%<ROUNDDOWN(L25*(1-$J$5),0),ROUNDDOWN(L25*(1-$J$5),0),$H$5*5%)) -> 
A26: =sh2増加!A26 -> 22 | B26: =sh2増加!B26 -> 0 | C26: =sh2増加!C26 ->  | D26: =sh2増加!D26 -> 0 | E26: =sh2増加!E26 -> 0 | F26: =sh2増加!F26 -> 0 | G26: =sh2増加!G26 -> 0 | H26: =sh2増加!H26 -> 0 | I26: =sh2増加!I26 -> 0 | J26: =IF(ISERROR(VLOOKUP($I26,sh1マスター!$G:$H,2,0)),"",VLOOKUP($I26,sh1マスター!$G:$H,2,0)) ->  | M26: =IF(ISERROR(ROUNDDOWN(L26*(1-$J$5),0)),"",IF($H$5*5%<ROUNDDOWN(L26*(1-$J$5),0),ROUNDDOWN(L26*(1-$J$5),0),$H$5*5%)) -> 
A27: =sh2増加!A27 -> 23 | B27: =sh2増加!B27 -> 0 | C27: =sh2増加!C27 ->  | D27: =sh2増加!D27 -> 0 | E27: =sh2増加!E27 -> 0 | F27: =sh2増加!F27 -> 0 | G27: =sh2増加!G27 -> 0 | H27: =sh2増加!H27 -> 0 | I27: =sh2増加!I27 -> 0 | J27: =IF(ISERROR(VLOOKUP($I27,sh1マスター!$G:$H,2,0)),"",VLOOKUP($I27,sh1マスター!$G:$H,2,0)) ->  | M27: =IF(ISERROR(ROUNDDOWN(L27*(1-$J$5),0)),"",IF($H$5*5%<ROUNDDOWN(L27*(1-$J$5),0),ROUNDDOWN(L27*(1-$J$5),0),$H$5*5%)) -> 
A28: =sh2増加!A28 -> 24 | B28: =sh2増加!B28 -> 0 | C28: =sh2増加!C28 ->  | D28: =sh2増加!D28 -> 0 | E28: =sh2増加!E28 -> 0 | F28: =sh2増加!F28 -> 0 | G28: =sh2増加!G28 -> 0 | H28: =sh2増加!H28 -> 0 | I28: =sh2増加!I28 -> 0 | J28: =IF(ISERROR(VLOOKUP($I28,sh1マスター!$G:$H,2,0)),"",VLOOKUP($I28,sh1マスター!$G:$H,2,0)) ->  | M28: =IF(ISERROR(ROUNDDOWN(L28*(1-$J$5),0)),"",IF($H$5*5%<ROUNDDOWN(L28*(1-$J$5),0),ROUNDDOWN(L28*(1-$J$5),0),$H$5*5%)) -> 
A29: =sh2増加!A29 -> 25 | B29: =sh2増加!B29 -> 0 | C29: =sh2増加!C29 ->  | D29: =sh2増加!D29 -> 0 | E29: =sh2増加!E29 -> 0 | F29: =sh2増加!F29 -> 0 | G29: =sh2増加!G29 -> 0 | H29: =sh2増加!H29 -> 0 | I29: =sh2増加!I29 -> 0 | J29: =IF(ISERROR(VLOOKUP($I29,sh1マスター!$G:$H,2,0)),"",VLOOKUP($I29,sh1マスター!$G:$H,2,0)) ->  | M29: =IF(ISERROR(ROUNDDOWN(L29*(1-$J$5),0)),"",IF($H$5*5%<ROUNDDOWN(L29*(1-$J$5),0),ROUNDDOWN(L29*(1-$J$5),0),$H$5*5%)) -> 
A30: =sh2増加!A30 -> 26 | B30: =sh2増加!B30 -> 0 | C30: =sh2増加!C30 ->  | D30: =sh2増加!D30 -> 0 | E30: =sh2増加!E30 -> 0 | F30: =sh2増加!F30 -> 0 | G30: =sh2増加!G30 -> 0 | H30: =sh2増加!H30 -> 0 | I30: =sh2増加!I30 -> 0 | J30: =IF(ISERROR(VLOOKUP($I30,sh1マスター!$G:$H,2,0)),"",VLOOKUP($I30,sh1マスター!$G:$H,2,0)) ->  | M30: =IF(ISERROR(ROUNDDOWN(L30*(1-$J$5),0)),"",IF($H$5*5%<ROUNDDOWN(L30*(1-$J$5),0),ROUNDDOWN(L30*(1-$J$5),0),$H$5*5%)) -> 
